Workbook

Sheet Analiza rentowności
B2: Analiza rentowności klienta
B3: 20.01.13 | D3: NAZWA FIRMY
B6: Działania klienta | C6: Klient 1 | D6: Klient 2 | E6: Klient 3 | F6: Ogólne
B7: Liczba aktywnych klientów — początek okresu | C7: 5 | D7: 8 | E7: 8 | F7: =SUM(C7:E7) -> 21
B8: Liczba dodanych klientów | C8: 2 | D8: 4 | E8: 4 | F8: =SUM(C8:E8) -> 10
B9: Liczba utraconych klientów i klientów, z którymi zakończono współpracę | C9: -1 | D9: -2 | E9: -2 | F9: -5
B10: Liczba aktywnych klientów — koniec okresu | C10: =SUBTOTAL(109,'Analiza rentowności'!$C$7:$C$9) -> 6 | D10: =SUBTOTAL(109,'Analiza rentowności'!$D$7:$D$9) -> 10 | E10: =SUBTOTAL(109,'Analiza rentowności'!$E$7:$E$9) -> 10 | F10: 26
B12: Analiza rentowności
B13: Przychód na segment | C13: 1,500,000 zł | D13: 1,800,000 zł | E13: 2,500,000 zł | F13: =SUM('Analiza rentowności'!$C13:$E13) -> 5,800,000 zł
B14: Waga | C14: =C13/$F$13 -> 25.9% | D14: =D13/$F$13 -> 31.0% | E14: 43.1% | F14: =SUM(C14:E14) -> 100.0%
B16: Koszty sprzedaży
B17: Bieżące koszty obsługi i pomocy technicznej | C17: 1,000,000 zł | D17: 1,400,000 zł | E17: 1,400,000 zł | F17: =SUM('Analiza rentowności'!$C17:$E17) -> 3,800,000 zł
B18: Inne koszty bezpośrednie dotyczące klientów | C18: 200,000 | D18: 100,000 | E18: 100,000 | F18: =SUM('Analiza rentowności'!$C18:$E18) -> 400,000
B19: Suma kosztów sprzedaży | C19: =SUBTOTAL(109,'Analiza rentowności'!$C$17:$C$18) -> 1,200,000 | D19: =SUBTOTAL(109,'Analiza rentowności'!$D$17:$D$18) -> 1,500,000 | E19: =SUBTOTAL(109,'Analiza rentowności'!$E$17:$E$18) -> 1,500,000 | F19: =SUBTOTAL(109,'Analiza rentowności'!$F$17:$F$18) -> 4,200,000
B20: Marża brutto | C20: =C13-'Analiza rentowności'!$C$19 -> 300,000 zł | D20: =D13-'Analiza rentowności'!$D$19 -> 300,000 zł | E20: =E13-'Analiza rentowności'!$E$19 -> 1,000,000 zł | F20: =F13-'Analiza rentowności'!$F$19 -> 1,600,000 zł
B21: Waga | C21: =MAX(0,MIN(1,C20/$F$20)) -> 18.8% | D21: =MAX(0,MIN(1,D20/$F$20)) -> 18.8% | E21: 62.5% | F21: =SUM('Analiza rentowności'!$C21:$E21) -> 100.0%
B23: Inne koszty
B24: Pozyskiwanie klientów | C24: 105,000 zł | D24: 120,000 zł | E24: 235,000 zł | F24: =SUM('Analiza rentowności'!$C24:$E24) -> 460,000 zł
B25: Działania marketingowe dotyczące klientów | C25: 150,000 | D25: 125,000 | E25: 275,000 | F25: =SUM('Analiza rentowności'!$C25:$E25) -> 550,000 zł
B26: Kończenie współpracy z klientami | C26: 80,000 | D26: 190,000 | E26: 140,000 | F26: =SUM('Analiza rentowności'!$C26:$E26) -> 410,000 zł
B27: Suma innych kosztów dotyczących klientów | C27: =SUBTOTAL(109,'Analiza rentowności'!$C$24:$C$26) -> 335,000 | D27: =SUBTOTAL(109,'Analiza rentowności'!$D$24:$D$26) -> 435,000 | E27: =SUBTOTAL(109,'Analiza rentowności'!$E$24:$E$26) -> 650,000 | F27: =SUBTOTAL(109,'Analiza rentowności'!$F$24:$F$26) -> 1,420,000
B29: Zysk dotyczący klientów na segment | C29: =C20-C27 -> -35,000 zł | D29: =D20-D27 -> -135,000 zł | E29: =E20-E27 -> 350,000 zł | F29: =F20-'Analiza rentowności'!$F$27 -> 180,000 zł
B30: Waga | C30: =MAX(0,MIN(1,C29/$F$29)) -> 0.0% | D30: =MAX(0,MIN(1,D29/$F$29)) -> 0.0% | E30: 100.0% | F30: =SUM('Analiza rentowności'!$C30:$E30) -> 100.0%
B32: Metryki podsumowujące
B33: Średni koszt na pozyskanego klienta | C33: =C24/C8 -> 52,500 zł | D33: =D24/D8 -> 30,000 zł | E33: =E24/E8 -> 58,750 zł
B34: Średni koszt na utraconego klienta | C34: =-C26/C9 -> 80,000 zł | D34: =-D26/D9 -> 95,000 zł | E34: =-E26/E9 -> 70,000 zł
B35: Średni koszt marketingu na aktywnego klienta | C35: =C25/'Analiza rentowności'!$C$10 -> 25,000 zł | D35: =D25/'Analiza rentowności'!$D$10 -> 12,500 zł | E35: =E25/'Analiza rentowności'!$E$10 -> 27,500 zł
B36: Średni przychód lub strata na klienta | C36: =C29/'Analiza rentowności'!$C$10 -> -5,833.33 zł | D36: =D29/'Analiza rentowności'!$D$10 -> -13,500.00 zł | E36: =E29/'Analiza rentowności'!$E$10 -> 35,000.00 zł

Sheet Wykres metryk podsumowujących
B2: Metryki podsumowujące na klienta
B3: =DataRaportu -> 20.01.13 | R3: =NazwaFirmy -> NAZWA FIRMY
